fUST/lending_fUST_20250801
["ID","MTS","AMOUNT","RATE_DAILY","PERIOD"]
[376529617,1754008244961,-152.0,0.000249,3]
[376529619,1754008244971,-152.0,0.000249,3]
[376529621,1754008244980,-152.0,0.000249,3]
[376529623,1754008244991,-152.0,0.000249,3]
[376529625,1754008245000,-213.4,0.000249,6]
[376529627,1754008245010,-162.72623996,0.000249,2]
[376529629,1754008245020,-934.73830608,0.000249,2]
[376529631,1754008245029,-231.48161788,0.000249,3]
[376529633,1754008245038,-164981.1937199,0.000249,2]
[376529636,1754008245050,-512.84993277,0.000249,2]
[376529638,1754008245061,-11542.0,0.000249,2]
[376529640,1754008245072,-10140.91952792,0.000249,2]
[376529643,1754008245086,-275981.35302564,0.000249,2]
[376529645,1754008245097,-12516.43628218,0.000249,2]
[376529647,1754008245108,-1145.15721172,0.000249,2]
[376529849,1754008246741,-1274.08,0.000249,2]
[376529853,1754008246773,-5793.30845276,0.000249,2]
[376529861,1754008246830,-219495.82204411,0.000249,2]
[376529863,1754008246839,-160.0,0.000249,3]
[376529865,1754008246849,-160.0,0.000249,7]
[376529867,1754008246858,-12634.73134317,0.000249,3]
[376529869,1754008246867,-783.62020456,0.00024904,2]
[376529871,1754008246877,-500.0,0.00024923,2]
[376529873,1754008246886,-500.0,0.0002493,2]
[376529875,1754008246895,-853.59,0.00024931,2]
[376529877,1754008246904,-589.47,0.00024931,2]
[376529879,1754008246914,-160.0,0.00024932,7]
[376529881,1754008246923,-500.0,0.00024932,2]
[376529883,1754008246932,-500.0,0.00024932,2]
[376529885,1754008246942,-168.0,0.00024941,2]
[376529887,1754008246951,-200.0,0.0002495,12]
[376529889,1754008246962,-1550.6,0.00024968,7]
[376529891,1754008246971,-783.87014358,0.00024969,12]
[376529893,1754008246980,-168.0,0.00024989,2]
[376529895,1754008246990,-2000.0,0.00025,14]
[376529897,1754008246999,-2000.0,0.00025,14]
[376529899,1754008247010,-2000.0,0.00025,14]
[376529901,1754008247020,-2000.0,0.00025,14]
[376529903,1754008247029,-1416.42,0.00025,14]
[376529905,1754008247039,-69763.11745513,0.00025,14]
[376529907,1754008247048,-47467.18,0.00025,2]
[376529909,1754008247058,-1387.08,0.00025,7]
[376529911,1754008247067,-1983.063308,0.00025,5]
[376529913,1754008247076,-160.0,0.00025,7]
[376529915,1754008247085,-168.0,0.00025066,2]
[376529917,1754008247094,-168.0,0.00025067,2]
[376529919,1754008247104,-1550.6,0.00025068,7]
[376529920,1754008247113,-150.0,0.00025109,2]
[376529922,1754008247123,-168.0,0.00025144,2]
[376529924,1754008247132,-1550.6,0.00025168,7]
[376529926,1754008247142,-168.0,0.00025184,2]
[376529928,1754008247151,-853.59,0.00025205,2]
[376529930,1754008247160,-589.47,0.00025205,2]
[376529932,1754008247169,-500.0,0.00025206,2]
[376529934,1754008247178,-500.0,0.00025206,2]
[376529936,1754008247186,-783.87014358,0.0002521,12]
[376529938,1754008247195,-9535.22521079,0.00025227,6]
[376529940,1754008247205,-500.0,0.00025242,2]
[376529942,1754008247215,-1550.6,0.00025268,7]
[376529944,1754008247224,-151.0,0.000253,13]
[376529946,1754008247233,-186.9976675,0.00025309,2]
[376529948,1754008247244,-1006.13,0.00025331,7]
[376529951,1754008247254,-1550.6,0.00025368,7]
[376529953,1754008247266,-17972.91088328,0.000254,2]
[376529955,1754008247276,-1000.0,0.00025421,2]
[376529957,1754008247285,-300.0,0.00025421,2]
[376529959,1754008247294,-400.0,0.00025421,2]
[376529961,1754008247303,-500.0,0.00025421,2]
[376529963,1754008247313,-500.0,0.00025448,2]
[376529965,1754008247322,-783.87014358,0.00025452,13]
[376529967,1754008247331,-1550.6,0.00025468,7]
[376529969,1754008247340,-853.77003176,0.00025479,2]
[376529971,1754008247350,-589.56518728,0.00025479,2]
[376529973,1754008247359,-500.0,0.0002548,2]
[376529975,1754008247368,-500.0,0.0002548,2]
[376529977,1754008247377,-500.0,0.00025481,2]
[376529979,1754008247386,-500.0,0.00025487,2]
[376529981,1754008247395,-151.0,0.00025527,7]
[376529983,1754008247404,-1550.6,0.00025568,7]
[376529985,1754008247415,-1633.63756005,0.00025571,2]
[376529986,1754008247425,-500.0,0.00025601,2]
[376529988,1754008247434,-1550.6,0.00025668,7]
[376529990,1754008247443,-783.87014358,0.00025693,13]
[376529993,1754008247453,-500.0,0.00025754,2]
[376529995,1754008247462,-500.0,0.00025754,2]
[376529997,1754008247471,-200.0,0.00025763,15]
[376529999,1754008247481,-200.0,0.00025763,15]
[376530001,1754008247491,-200.0,0.00025763,15]
[376530005,1754008247525,-200.0,0.00025763,15]
[376530007,1754008247534,-200.0,0.00025763,15]
[376530009,1754008247543,-200.0,0.00025763,15]
[376530011,1754008247552,-200.0,0.00025763,15]
[376530013,1754008247561,-200.0,0.00025763,15]
[376530015,1754008247570,-200.0,0.00025763,15]
[376530017,1754008247579,-394.0,0.00025763,15]
[376530019,1754008247588,-1550.6,0.00025768,7]
[376530021,1754008247597,-39900.74,0.00025768,11]
[376530023,1754008247605,-168.0,0.00025785,2]
[376530025,1754008247614,-11906.47,0.000258,7]
[376530027,1754008247624,-500.0,0.00025839,2]
[376530029,1754008247632,-1550.6,0.00025868,7]
[376530031,1754008247641,-1006.13,0.00025887,7]
[376530033,1754008247651,-168.0,0.00025888,2]
[376530035,1754008247660,-160.0,0.0002589,7]
[376530037,1754008247669,-500.0,0.00025903,2]
[376530039,1754008247678,-783.87014358,0.00025934,14]
[376530041,1754008247686,-5052.79850153,0.00025943,6]
[376530043,1754008247696,-5000.0,0.00025943,5]
[376530045,1754008247705,-1550.6,0.00025968,7]
[376530047,1754008247714,-1500.0,0.00025968,2]
[376530049,1754008247723,-450.0,0.00025968,2]
[376530051,1754008247732,-200.0,0.00025968,2]
[376530053,1754008247744,-8000.0,0.00026,2]
[376530055,1754008247754,-841.37753757,0.00026,3]
[376530057,1754008247763,-1655.90361191,0.00026,30]
[376530059,1754008247773,-160.0,0.00026,7]
[376530061,1754008247783,-500.0,0.00026028,2]
[376530063,1754008247792,-500.0,0.00026028,2]
[376530065,1754008247801,-500.0,0.00026034,2]
[376530067,1754008247810,-1550.6,0.00026068,7]
[376530069,1754008247819,-168.0,0.00026085,2]
[376530071,1754008247828,-1000.60220997,0.000261,3]
[376530073,1754008247838,-2000.0,0.000261,2]
[376530076,1754008247851,-1550.6,0.00026168,7]
[376530078,1754008247861,-783.87014358,0.00026176,14]
[376530079,1754008247869,-500.0,0.00026192,2]
[376530081,1754008247879,-2000.0,0.000262,3]
[376530083,1754008247888,-2393.53,0.000262,7]
[376530085,1754008247897,-168.0,0.00026221,2]
[376530088,1754008247906,-500.0,0.0002625,2]
[376530089,1754008247915,-1550.6,0.00026268,7]
[376530091,1754008247924,-777.58564674,0.0002629,2]
[376530093,1754008247933,-47467.18,0.000263,2]
[376530095,1754008247942,-1387.08,0.000263,7]
[376530097,1754008247951,-500.0,0.00026302,2]
[376530099,1754008247960,-500.0,0.00026302,2]
[376530101,1754008247969,-837.37585378,0.00026314,16]
[376530103,1754008247979,-500.0,0.00026329,2]
[376530105,1754008247987,-151.0,0.00026339,7]
[376530107,1754008247997,-151.0,0.00026339,7]
[376530109,1754008248006,-154.367338,0.0002634,2]
[376530111,1754008248016,-28422.47712024,0.00026342,2]
[376530113,1754008248026,-1633.63756005,0.00026342,2]
[376530115,1754008248036,-186.9976675,0.00026347,2]
[376530117,1754008248045,-1550.6,0.00026368,7]
[376530119,1754008248055,-783.87014358,0.00026417,15]
[376530122,1754008248064,-500.0,0.00026438,2]
[376530124,1754008248074,-151.0,0.00026438,7]
[376530126,1754008248084,-151.0,0.00026438,7]
[376530127,1754008248093,-151.0,0.00026438,7]
[376530130,1754008248103,-151.0,0.00026438,7]
[376530131,1754008248112,-430.2927267,0.00026438,2]
[376530133,1754008248121,-430.2927267,0.00026438,2]
[376530136,1754008248130,-178.4967982,0.00026438,2]
[376530137,1754008248140,-153.0,0.00026438,2]
[376530139,1754008248149,-578.3876535,0.00026438,2]
[376530141,1754008248158,-153.0,0.00026438,2]
[376530143,1754008248168,-178.4967982,0.00026438,2]
[376530145,1754008248177,-153.0,0.00026438,2]
[376530147,1754008248186,-153.0,0.00026438,2]
[376530149,1754008248196,-430.2927267,0.00026438,2]
[376530151,1754008248205,-160.1575864,0.00026438,2]
[376530153,1754008248215,-578.3876535,0.00026438,2]
[376530155,1754008248224,-178.4967982,0.00026438,2]
[376530157,1754008248233,-153.0,0.00026438,2]
[376530159,1754008248245,-153.0,0.00026438,2]
[376530161,1754008248255,-160.1575864,0.00026438,2]
[376530163,1754008248266,-430.2927267,0.00026438,2]
[376530165,1754008248276,-178.4967982,0.00026438,2]
[376530166,1754008248285,-153.0,0.00026438,2]
[376530167,1754008248295,-578.3876535,0.00026438,2]
[376530168,1754008248304,-160.1575864,0.00026438,2]
[376530169,1754008248315,-178.4967982,0.00026438,2]
[376530170,1754008248325,-153.0,0.00026438,2]
[376530171,1754008248334,-430.2927267,0.00026438,2]
[376530172,1754008248346,-578.3876535,0.00026438,2]
[376530173,1754008248356,-160.1575864,0.00026438,2]
[376530174,1754008248365,-430.2927267,0.00026438,2]
[376530175,1754008248374,-153.0,0.00026438,2]
[376530176,1754008248383,-160.1575864,0.00026438,2]
[376530177,1754008248392,-578.3876535,0.00026438,2]
[376530178,1754008248401,-178.4967982,0.00026438,2]
[376530179,1754008248410,-430.2927267,0.00026438,2]
[376530180,1754008248419,-153.0,0.00026438,2]
[376530181,1754008248429,-160.1575864,0.00026438,2]
[376530182,1754008248438,-178.4967982,0.00026438,2]
[376530183,1754008248447,-1154.1078065,0.00026438,2]
[376530185,1754008248457,-160.1575864,0.00026438,2]
[376530187,1754008248467,-430.2927267,0.00026438,2]
[376530188,1754008248477,-153.0,0.00026438,2]
[376530190,1754008248486,-160.1575864,0.00026438,2]
[376530193,1754008248503,-153.0,0.00026438,2]
[376530195,1754008248513,-430.2927267,0.00026438,2]
[376530197,1754008248522,-178.4967982,0.00026438,2]
[376530198,1754008248532,-160.1575864,0.00026438,2]
[376530200,1754008248542,-153.0,0.00026438,2]
[376530202,1754008248551,-430.2927267,0.00026438,2]
[376530204,1754008248561,-160.1575864,0.00026438,2]
[376530207,1754008248571,-312.680395,0.00026438,2]
[376530209,1754008248582,-430.2927267,0.00026438,2]
[376530211,1754008248592,-160.1575864,0.00026438,2]
[376530213,1754008248603,-160.1575864,0.00026438,2]
[376530215,1754008248613,-430.2927267,0.00026438,2]
[376530217,1754008248623,-160.1575864,0.00026438,2]
[376530219,1754008248632,-430.2927267,0.00026438,2]
[376530221,1754008248642,-160.1575864,0.00026438,2]
[376530223,1754008248651,-430.2927267,0.00026438,2]
[376530225,1754008248661,-160.1575864,0.00026438,2]
[376530227,1754008248671,-430.2927267,0.00026438,2]
[376530229,1754008248681,-160.1575864,0.00026438,2]
[376530231,1754008248691,-160.1575864,0.00026438,2]
[376530233,1754008248701,-160.1575864,0.00026438,2]
[376530234,1754008248711,-430.2927267,0.00026438,2]
[376530237,1754008248720,-160.1575864,0.00026438,2]
[376530238,1754008248730,-160.1575864,0.00026438,2]
[376530240,1754008248742,-429.0342159,0.00026438,2]
[376530242,1754008248752,-160.1575864,0.00026438,2]
[376530244,1754008248762,-177.9736489,0.00026438,2]
[376530246,1754008248772,-178.4386705,0.00026438,2]
[376530248,1754008248782,-151.0,0.00026439,7]
[376530250,1754008248792,-151.0,0.00026439,7]
[376530252,1754008248802,-151.0,0.00026439,7]
[376530254,1754008248812,-151.0,0.00026439,7]
[376530256,1754008248821,-151.0,0.00026439,7]
[376530258,1754008248831,-151.0,0.00026439,7]
[376530260,1754008248840,-151.0,0.00026439,7]
[376530262,1754008248849,-151.0,0.00026439,7]
[376530265,1754008248859,-151.0,0.00026439,7]
[376530266,1754008248869,-151.0,0.00026439,7]
[376530268,1754008248879,-151.0,0.00026439,7]
[376530270,1754008248888,-151.0,0.00026442,7]
[376530273,1754008248898,-151.0,0.00026442,7]
[376530275,1754008248908,-151.0,0.00026442,7]
[376530277,1754008248918,-151.0,0.00026442,7]
[376530279,1754008248928,-151.0,0.00026442,7]
[376530281,1754008248938,-151.0,0.00026442,7]
[376530283,1754008248947,-151.0,0.00026442,7]
[376530284,1754008248958,-151.0,0.00026442,7]
[376530287,1754008248967,-151.0,0.00026442,7]
[376530289,1754008248977,-151.0,0.00026442,7]
[376530291,1754008248991,-286.996496,0.00026442,7]
[376530292,1754008249002,-1006.13,0.00026442,7]
[376530294,1754008249012,-151.0,0.00026446,7]
[376530296,1754008249022,-151.0,0.00026446,7]
[376530298,1754008249032,-245.896876,0.00026446,7]
[376530301,1754008249042,-578901.34390237,0.00026447,20]
[376530303,1754008249056,-924000.0,0.00026447,20]
[376530305,1754008249068,-1159.0990001,0.00026447,20]
[376531799,1754008465457,281.862453,0.00013699,2]
[376531802,1754008797452,-300.0,0.00019077,2]
[376531803,1754008797478,-460.0,0.00019178,2]
[376531804,1754008797501,-460.0,0.00019178,2]
[376531805,1754008797525,-460.0,0.00019178,2]
[376531806,1754008797547,-460.0,0.00019178,2]
[376531807,1754008797568,-460.0,0.00019178,2]
[376531808,1754008797592,-460.0,0.00019178,2]
[376531809,1754008797615,-460.0,0.00019178,2]
[376531810,1754008797637,-460.0,0.00019178,2]
[376531811,1754008797660,-460.0,0.00019178,2]
[376531812,1754008797684,-460.0,0.00019178,2]
[376531813,1754008797710,-460.0,0.00019178,2]
[376531814,1754008797730,-460.0,0.00019178,2]
[376531815,1754008797750,-460.0,0.00019178,2]
[376531816,1754008797772,-460.0,0.00019178,2]
[376531817,1754008797794,-460.0,0.00019178,2]
[376531818,1754008797817,-460.0,0.00019178,2]
[376531819,1754008797838,-460.0,0.00019178,2]
[376531820,1754008797859,-316.14502267,0.00019178,2]
[376531821,1754008797881,-545.82,0.00019178,2]
[376531822,1754008797903,-460.0,0.00019178,2]
[376531823,1754008797925,-460.0,0.00019178,2]
[376531824,1754008797948,-460.0,0.00019178,2]
[376531825,1754008797973,-460.0,0.00019178,2]
[376531826,1754008797995,-460.0,0.00019178,2]
[376531827,1754008798018,-460.0,0.00019178,2]
[376531828,1754008798039,-460.0,0.00019178,2]
[376531829,1754008798062,-460.0,0.00019178,2]
[376531830,1754008798084,-460.0,0.00019178,2]
[376531831,1754008798105,-499.53902578,0.00019178,2]
[376531832,1754008798126,-460.0,0.00019178,2]
[376531833,1754008798150,-460.0,0.00019178,2]
[376531834,1754008798171,-300.70751158,0.00019178,2]
[376531835,1754008798193,-460.0,0.00019178,2]
[376531836,1754008798219,-460.0,0.00019178,2]
[376531837,1754008798243,-460.0,0.00019178,2]
[376531838,1754008798264,-460.0,0.00019178,2]
[376531839,1754008798287,-460.0,0.00019178,2]
[376531840,1754008798308,-460.0,0.00019178,2]
[376531841,1754008798331,-460.0,0.00019178,2]
[376531842,1754008798354,-460.0,0.00019178,2]
[376531843,1754008798377,-460.0,0.00019178,2]
[376531844,1754008798400,-460.0,0.00019178,2]
[376531845,1754008798426,-319.99030485,0.00019178,2]
[376531846,1754008798449,-460.0,0.00019178,2]
[376531847,1754008798475,-460.0,0.00019178,2]
[376531848,1754008798498,-460.0,0.00019178,2]
[376531849,1754008798524,-460.0,0.00019178,2]
[376531850,1754008798546,-460.0,0.00019178,2]
[376531851,1754008798574,-460.0,0.00019178,2]
[376531852,1754008798603,-269.02197361,0.00019178,2]
[376531853,1754008798631,-256.10802252,0.00019178,2]
[376531854,1754008798657,-460.0,0.00019178,2]
[376531855,1754008798682,-460.0,0.00019178,2]
[376531856,1754008798713,-480.55,0.00019178,2]
[376531857,1754008798741,-460.0,0.00019178,2]
[376531858,1754008798766,-785.26812289,0.00019178,2]
[376531859,1754008798827,460.0,0.00019178,2]
[376531860,1754008803920,460.0,0.00019178,2]
[376531861,1754008812393,460.0,0.00019178,2]
[376531862,1754008814369,460.0,0.00019178,2]
[376531863,1754008822516,460.0,0.00019178,2]
[376531864,1754008826516,460.0,0.00019178,2]
[376531866,1754008833468,460.0,0.00019178,2]
[376531867,1754008835711,460.0,0.00019178,2]
[376531868,1754008837059,460.0,0.00019178,2]
[376531869,1754008838627,460.0,0.00019178,2]
[376531870,1754008838882,460.0,0.00019178,2]
[376531871,1754008846140,460.0,0.00019178,2]
[376531872,1754008849952,460.0,0.00019178,2]
[376531873,1754008850157,460.53,0.00019178,2]
[376531874,1754008863953,553.77471856,0.00019178,2]
[376531875,1754008874683,177.95678535,0.00019178,2]
[376531876,1754008879593,545.82,0.00019178,2]
[376531877,1754008880992,466.54134113,0.00019178,2]
[376531878,1754008890954,460.0,0.00019178,2]
[376531879,1754008896575,460.0,0.00019178,2]
[376531880,1754008900647,460.0,0.00019178,2]
[376531881,1754008903014,460.0,0.00019178,2]
[376531882,1754008907994,460.0,0.00019178,2]
[376531883,1754008913008,460.0,0.00019178,2]
[376531884,1754008916834,460.0,0.00019178,2]
[376531885,1754008931498,460.0,0.00019178,2]
[376531886,1754008932803,460.0,0.00019178,2]
[376531887,1754008946244,219.65210046,0.00019178,7]
[376531888,1754008949008,460.0,0.00019178,2]
[376531889,1754008954915,460.0,0.00019178,2]
[376531890,1754008955694,460.0,0.00019178,2]
[376531891,1754008962489,460.0,0.00019178,2]
[376531892,1754008977387,460.0,0.00019178,2]
[376531893,1754008981488,460.0,0.00019178,2]
[376531894,1754008987671,402.5750706,0.00019178,2]
[376531924,1754009234778,1000.0,0.00018378,2]
[376531925,1754009259003,162.0,0.000187,2]
[376531926,1754009306741,908.00555757,0.0001878,2]
[376531964,1754009433187,-150.42723835,0.000189,2]
[376531966,1754009433198,-300.0,0.00019076,2]
[376531968,1754009433208,-0.57439007,0.00019077,2]
[376531970,1754009433221,-16683.9914008,0.00019077,2]
[376531972,1754009433232,-12223.5085992,0.00019078,2]
[376531975,1754009433254,-254.7134626,0.00019078,2]
[376531977,1754009433268,-4206.34372905,0.00019078,2]
[376531980,1754009433278,-16684.56579085,0.00019078,2]
[376531982,1754009433289,-460.0,0.00019178,2]
[376531984,1754009433299,-460.0,0.00019178,2]
[376531986,1754009433310,-460.0,0.00019178,2]
[376531987,1754009433320,-460.0,0.00019178,2]
[376531990,1754009433331,-460.0,0.00019178,2]
[376531992,1754009433341,-165.1847579,0.00019178,2]
[376531993,1754009433351,-500.0,0.00019178,2]
[376531995,1754009433362,-460.0,0.00019178,2]
[376531997,1754009433372,-460.0,0.00019178,2]
[376531999,1754009433381,-460.0,0.00019178,2]
[376532001,1754009433391,-747.79064486,0.00019178,2]
[376532003,1754009433402,-460.0,0.00019178,2]
[376532005,1754009433413,-460.0,0.00019178,2]
[376532007,1754009433423,-463.57125146,0.00019178,2]
[376532009,1754009433434,-460.0,0.00019178,2]
[376532011,1754009433443,-460.0,0.00019178,2]
[376532013,1754009433454,-460.0,0.00019178,2]
[376532015,1754009433465,-460.0,0.00019178,2]
[376532017,1754009433475,-460.0,0.00019178,2]
[376532018,1754009433485,-460.0,0.00019178,2]
[376532019,1754009433499,-460.0,0.00019178,2]
[376532020,1754009433509,-460.0,0.00019178,2]
[376532021,1754009433519,-460.0,0.00019178,2]
[376532022,1754009433529,-460.0,0.00019178,2]
[376532023,1754009433539,-460.0,0.00019178,2]
[376532024,1754009433549,-460.0,0.00019178,2]
[376532025,1754009433560,-460.0,0.00019178,2]
[376532026,1754009433570,-460.0,0.00019178,2]
[376532027,1754009433580,-460.0,0.00019178,2]
[376532028,1754009433590,-460.0,0.00019178,2]
[376532029,1754009433599,-460.0,0.00019178,2]
[376532030,1754009433609,-460.0,0.00019178,2]
[376532031,1754009433619,-460.0,0.00019178,2]
[376532032,1754009433629,-409.93786923,0.00019178,2]
[376532033,1754009433644,-460.0,0.00019178,2]
[376532034,1754009433654,-460.0,0.00019178,2]
[376532035,1754009433664,-460.0,0.00019178,2]
[376532036,1754009433674,-460.0,0.00019178,2]
[376532037,1754009433687,-460.0,0.00019178,2]
[376532038,1754009433696,-460.0,0.00019178,2]
[376532039,1754009433706,-161.05,0.00019178,2]
[376532040,1754009433716,-460.0,0.00019178,2]
[376532041,1754009433726,-460.0,0.00019178,2]
[376532042,1754009433736,-460.0,0.00019178,2]
[376532043,1754009433751,-460.0,0.00019178,2]
[376532044,1754009433761,-467.48,0.00019178,2]
[376532045,1754009433772,-460.0,0.00019178,2]
[376532046,1754009433783,-460.0,0.00019178,2]
[376532047,1754009433793,-460.0,0.00019178,2]
[376532048,1754009433803,-460.0,0.00019178,2]
[376532049,1754009433813,-584.91,0.00019178,2]
[376532050,1754009433823,-460.0,0.00019178,2]
[376532051,1754009433833,-460.0,0.00019178,2]
[376532052,1754009433844,-460.0,0.00019178,2]
[376532053,1754009433853,-460.0,0.00019178,2]
[376532054,1754009433863,-460.0,0.00019178,2]
[376532055,1754009433873,-460.0,0.00019178,2]
[376532056,1754009433883,-460.0,0.00019178,2]
[376532057,1754009433894,-494.08,0.00019178,2]
[376532058,1754009433904,-460.0,0.00019178,2]
[376532059,1754009433914,-460.0,0.00019351,2]
[376532060,1754009433924,-550.8849294,0.00019351,2]
[376532061,1754009433934,-460.0,0.00019351,2]
[376532062,1754009433950,-460.0,0.00019351,2]
[376532063,1754009433960,-460.0,0.00019351,2]
[376532064,1754009433970,-460.0,0.00019452,2]
[376532065,1754009433981,-460.0,0.00019452,2]
[376532066,1754009433991,-460.0,0.00019452,2]
[376532067,1754009434008,-460.0,0.00019452,2]
[376532068,1754009434019,-460.0,0.00019452,2]
[376532069,1754009434029,-407.12,0.00019452,2]
[376532070,1754009434039,-460.0,0.00019452,2]
[376532071,1754009434050,-442.92,0.00019452,2]
[376532072,1754009434061,-460.0,0.00019452,2]
[376532073,1754009434071,-460.0,0.00019452,2]
[376532074,1754009434082,-460.0,0.00019452,2]
[376532075,1754009434093,-460.0,0.00019452,2]
[376532076,1754009434103,-168.2474739,0.00019561,2]
[376532077,1754009434114,-200.0,0.00019561,15]
[376532078,1754009434124,-200.0,0.00019561,15]
[376532079,1754009434135,-200.0,0.00019561,15]
[376532080,1754009434145,-200.0,0.00019561,15]
[376532081,1754009434155,-460.0,0.00019625,2]
[376532082,1754009434165,-460.0,0.00019625,2]
[376532083,1754009434176,-460.0,0.00019625,2]
[376532084,1754009434185,-335.81271697,0.00019726,2]
[376532142,1754009437945,-124.18728303,0.00019726,2]
[376532144,1754009437955,-460.0,0.00019726,2]
[376532146,1754009437964,-460.0,0.00019726,2]
[376532148,1754009437975,-460.0,0.00019726,2]
[376532150,1754009437984,-320.81271697,0.00019726,2]
[376532152,1754009437998,-139.18728303,0.00019726,2]
[376532154,1754009438009,-459.64096096,0.00019726,2]
[376532156,1754009438021,-0.35903904,0.00019726,2]
[376532158,1754009438031,-317.36,0.00019726,2]
[376532160,1754009438041,-17.37665536,0.00019726,2]
[376532163,1754009438053,-442.62334464,0.00019726,2]
[376532164,1754009438063,-747.79064486,0.00019726,2]
[376532165,1754009438073,-618.57,0.000198,2]
[376532166,1754009438083,-460.0,0.00019899,2]
[376532168,1754009438093,-460.0,0.00019899,2]
[376532170,1754009438102,-460.0,0.00019899,2]
[376532172,1754009438111,-460.0,0.00019999,2]
[376532174,1754009438121,-460.0,0.00019999,2]
[376532176,1754009438130,-460.0,0.00019999,2]
[376532178,1754009438139,-123.24190916,0.00019999,2]
[376532181,1754009438159,-358.99529019,0.00019178,2]
[376532233,1754009440088,-101.00470981,0.00019178,2]
[376532237,1754009440098,-460.0,0.00019452,2]
[376532239,1754009440108,-460.0,0.00019726,2]
[376532241,1754009440117,-336.75809084,0.00019999,2]
[376532242,1754009440126,-460.0,0.00019999,2]
[376532245,1754009440136,-747.79064486,0.00019999,2]
[376532247,1754009440145,-460.0,0.0002,2]
[376532250,1754009440163,-460.0,0.0002,2]
[376532252,1754009440174,-521.29,0.0002,2]
[376532254,1754009440184,-196.72,0.0002,2]
[376532256,1754009440194,-460.0,0.0002,2]
[376532258,1754009440203,-460.0,0.0002,2]
[376532260,1754009440213,-379.42,0.0002,2]
[376532262,1754009440222,-460.0,0.0002,2]
[376532264,1754009440231,-246.04,0.00020173,2]
[376532266,1754009440241,-460.0,0.00020173,2]
[376532268,1754009440255,-460.0,0.00020173,2]
[376532271,1754009440265,-281.862453,0.00020187,2]
[376532274,1754009440275,-841.37753757,0.00020235,2]
[376532277,1754009440285,-460.0,0.00020272,2]
[376532279,1754009440295,-460.0,0.00020272,2]
[376532281,1754009440304,-460.0,0.00020272,2]
[376532283,1754009440313,-460.0,0.00020272,2]
[376532285,1754009440323,-460.0,0.00020272,2]
[376532287,1754009440332,-460.0,0.00020272,2]
[376532290,1754009440341,-460.0,0.00020272,2]
[376532292,1754009440350,-38.62365671,0.00020272,2]
[376532294,1754009440363,-421.37634329,0.00020272,2]
[376532296,1754009440373,-460.0,0.00020272,2]
[376532298,1754009440383,-31.04038707,0.00020272,2]
[376532301,1754009440396,-428.95961293,0.00020272,2]
[376532303,1754009440406,-159.29321771,0.00020272,2]
[376532558,1754009442915,-300.70678229,0.00020272,2]
[376532561,1754009442925,-460.0,0.00020272,2]
[376532565,1754009442934,-322.63896971,0.00020272,2]
[376532588,1754009443023,-137.36103029,0.00020272,2]
[376532592,1754009443032,-460.0,0.00020272,2]
[376532595,1754009443042,-460.0,0.00020272,2]
[376532598,1754009443051,-477.05314807,0.00020272,2]
[376532601,1754009443061,-460.0,0.00020272,2]
[376532604,1754009443071,-460.0,0.00020272,2]